[Event "Titled Tuesday Blitz November 07 Early 2023"]
[White "Zavgorodniy, Sergiy"]
[Black "Pham, Le Thao Nguyen"]
[WhiteFideId "14110148"]
[BlackFideId "12401226"]
[WhiteElo "2685"]
[BlackElo "2530"]
[Result "1-0"]
[Round "8"]
[TimeControl "180+1"]
[Date "2023.11.07"]
[WhiteClock "0:00:30"]
[BlackClock "0:00:09"]
[Board "76"]

1. d4 {[%clk 0:03:00]}  d5 {[%clk 0:02:59]} 2. c4 {[%clk 0:03:00]}  c6 {[%clk 0:02:59]} 3. e3 {[%clk 0:03:00]}  Nf6 {[%clk 0:02:59]} 4. Bd3 {[%clk 0:03:00]}  Bg4 {[%clk 0:02:58]} 5. Qc2 {[%clk 0:03:00]}  e6 {[%clk 0:02:56]} 6. Nd2 {[%clk 0:03:00]}  Bh5 {[%clk 0:02:53]} 7. Ngf3 {[%clk 0:03:01]}  Bg6 {[%clk 0:02:52]} 8. O-O {[%clk 0:03:01]}  Be7 {[%clk 0:02:39]} 9. e4 {[%clk 0:02:59]}  dxe4 {[%clk 0:02:39]} 10. Nxe4 {[%clk 0:03:00]}  O-O {[%clk 0:02:32]} 11. b3 {[%clk 0:02:58]}  a5 {[%clk 0:02:23]} 12. Bb2 {[%clk 0:02:57]}  Nbd7 {[%clk 0:02:18]} 13. Rad1 {[%clk 0:02:56]}  Qc7 {[%clk 0:02:03]} 14. Ne5 {[%clk 0:02:52]}  Nxe5 {[%clk 0:01:57]} 15. dxe5 {[%clk 0:02:52]}  Nxe4 {[%clk 0:01:57]} 16. Bxe4 {[%clk 0:02:53]}  Rfd8 {[%clk 0:01:54]} 17. Bxg6 {[%clk 0:02:49]}  hxg6 {[%clk 0:01:53]} 18. Rxd8+ {[%clk 0:02:48]}  Rxd8 {[%clk 0:01:53]} 19. Rd1 {[%clk 0:02:48]}  Rd7 {[%clk 0:01:50]} 20. Kf1 {[%clk 0:02:37]}  Qd8 {[%clk 0:01:42]} 21. Ke2 {[%clk 0:02:36]}  Bc5 {[%clk 0:01:42]} 22. Rxd7 {[%clk 0:02:32]}  Qxd7 {[%clk 0:01:43]} 23. Bc3 {[%clk 0:02:28]}  Qd8 {[%clk 0:01:26]} 24. Qd3 {[%clk 0:02:18]}  Qh4 {[%clk 0:01:20]} 25. g3 {[%clk 0:01:23]}  Qxh2 {[%clk 0:01:18]} 26. Qf3 {[%clk 0:01:23]}  Qg1 {[%clk 0:01:10]} 27. Be1 {[%clk 0:01:21]}  Qh2 {[%clk 0:01:03]} 28. Bxa5 {[%clk 0:01:18]}  Qh5 {[%clk 0:00:51]} 29. Qxh5 {[%clk 0:01:15]}  gxh5 {[%clk 0:00:52]} 30. Bc3 {[%clk 0:01:13]}  Kh7 {[%clk 0:00:49]} 31. a4 {[%clk 0:01:09]}  Kg6 {[%clk 0:00:48]} 32. f4 {[%clk 0:01:06]}  Kf5 {[%clk 0:00:48]} 33. Kf3 {[%clk 0:01:04]}  f6 {[%clk 0:00:39]} 34. b4 {[%clk 0:01:02]}  Ba7 {[%clk 0:00:29]} 35. exf6 {[%clk 0:01:02]}  gxf6 {[%clk 0:00:29]} 36. b5 {[%clk 0:01:00]}  e5 {[%clk 0:00:20]} 37. fxe5 {[%clk 0:00:56]}  fxe5 {[%clk 0:00:21]} 38. a5 {[%clk 0:00:52]}  cxb5 {[%clk 0:00:19]} 39. cxb5 {[%clk 0:00:51]}  e4+ {[%clk 0:00:19]} 40. Ke2 {[%clk 0:00:50]}  Bc5 {[%clk 0:00:17]} 41. a6 {[%clk 0:00:47]}  bxa6 {[%clk 0:00:16]} 42. bxa6 {[%clk 0:00:48]}  Kg4 {[%clk 0:00:12]} 43. Bd2 {[%clk 0:00:46]}  Ba7 {[%clk 0:00:10]} 44. Be3 {[%clk 0:00:44]}  Bb8 {[%clk 0:00:11]} 45. Bf4 {[%clk 0:00:38]}  Ba7 {[%clk 0:00:11]} 46. Be3 {[%clk 0:00:37]}  Bb8 {[%clk 0:00:11]} 47. Bb6 {[%clk 0:00:32]}  Kxg3 {[%clk 0:00:09]} 48. Bc7+ {[%clk 0:00:31]}  Bxc7 {[%clk 0:00:09]} 49. a7 {[%clk 0:00:31]}  Kg2 {[%clk 0:00:07]} 50. a8=Q {[%clk 0:00:31]}  Bg3 {[%clk 0:00:08]} 51. Qxe4+ {[%clk 0:00:30]}  Kh2 {[%clk 0:00:09]} 52. Kf1 {[%clk 0:00:30]}  h4 {[%clk 0:00:09]} 53. Qg2# {[%clk 0:00:30]} 1-0


[Site "https://www.chess.com"]

[Event "Titled Tuesday Blitz November 07 Early 2023"]
[White "arenal72"]
[Black "Starozhilov, Leonid"]
[BlackFideId "14106752"]
[WhiteElo "2525"]
[BlackElo "2682"]
[Result "0-1"]
[Round "8"]
[TimeControl "180+1"]
[Date "2023.11.07"]
[WhiteClock "0:00:02"]
[BlackClock "0:00:14"]
[Board "78"]

1. e4 {[%clk 0:03:00]}  g6 {[%clk 0:02:58]} 2. d4 {[%clk 0:02:59]}  Bg7 {[%clk 0:02:59]} 3. Nc3 {[%clk 0:02:58]}  a6 {[%clk 0:02:59]} 4. Nf3 {[%clk 0:02:56]}  b5 {[%clk 0:02:59]} 5. Be3 {[%clk 0:02:56]}  Bb7 {[%clk 0:02:59]} 6. Bd3 {[%clk 0:02:56]}  d6 {[%clk 0:02:55]} 7. e5 {[%clk 0:02:49]}  e6 {[%clk 0:02:47]} 8. Be4 {[%clk 0:02:41]}  d5 {[%clk 0:02:21]} 9. Bd3 {[%clk 0:02:39]}  Nd7 {[%clk 0:02:22]} 10. b4 {[%clk 0:02:32]}  Ne7 {[%clk 0:02:14]} 11. h4 {[%clk 0:02:30]}  h6 {[%clk 0:02:14]} 12. h5 {[%clk 0:02:26]}  g5 {[%clk 0:02:15]} 13. g4 {[%clk 0:02:25]}  Nb6 {[%clk 0:02:06]} 14. a4 {[%clk 0:02:11]}  Nc4 {[%clk 0:01:55]} 15. a5 {[%clk 0:02:06]}  Qd7 {[%clk 0:01:43]} 16. Nd2 {[%clk 0:02:02]}  Nxe5 {[%clk 0:01:40]} 17. dxe5 {[%clk 0:01:58]}  d4 {[%clk 0:01:40]} 18. Be4 {[%clk 0:01:57]}  dxe3 {[%clk 0:01:31]} 19. Bxb7 {[%clk 0:01:54]}  exd2+ {[%clk 0:01:22]} 20. Qxd2 {[%clk 0:01:55]}  Qxd2+ {[%clk 0:01:20]} 21. Kxd2 {[%clk 0:01:55]}  Ra7 {[%clk 0:01:20]} 22. Be4 {[%clk 0:01:51]}  Bxe5 {[%clk 0:01:20]} 23. Rad1 {[%clk 0:01:49]}  c6 {[%clk 0:00:59]} 24. Ne2 {[%clk 0:01:37]}  f5 {[%clk 0:00:50]} 25. gxf5 {[%clk 0:01:27]}  exf5 {[%clk 0:00:51]} 26. Bg2 {[%clk 0:01:26]}  Rd7+ {[%clk 0:00:46]} 27. Ke3 {[%clk 0:01:24]}  Kd8 {[%clk 0:00:33]} 28. Rxd7+ {[%clk 0:01:19]}  Kxd7 {[%clk 0:00:33]} 29. Rd1+ {[%clk 0:01:19]}  Kc7 {[%clk 0:00:33]} 30. Bh1 {[%clk 0:00:50]}  Rd8 {[%clk 0:00:27]} 31. Rxd8 {[%clk 0:00:49]}  Kxd8 {[%clk 0:00:28]} 32. Nd4 {[%clk 0:00:48]}  Kd7 {[%clk 0:00:25]} 33. c3 {[%clk 0:00:38]}  Kd6 {[%clk 0:00:21]} 34. Ne2 {[%clk 0:00:30]}  Nd5+ {[%clk 0:00:20]} 35. Kd3 {[%clk 0:00:30]}  g4 {[%clk 0:00:19]} 36. Bg2 {[%clk 0:00:21]}  Nf6 {[%clk 0:00:19]} 37. c4 {[%clk 0:00:18]}  bxc4+ {[%clk 0:00:17]} 38. Kxc4 {[%clk 0:00:17]}  Nxh5 {[%clk 0:00:18]} 39. Nc1 {[%clk 0:00:12]}  Nf4 {[%clk 0:00:18]} 40. Bf1 {[%clk 0:00:13]}  h5 {[%clk 0:00:17]} 41. Kb3 {[%clk 0:00:13]}  h4 {[%clk 0:00:17]} 42. Bxa6 {[%clk 0:00:13]}  h3 {[%clk 0:00:18]} 43. Bb7 {[%clk 0:00:06]}  h2 {[%clk 0:00:17]} 44. a6 {[%clk 0:00:06]}  h1=Q {[%clk 0:00:17]} 45. a7 {[%clk 0:00:06]}  Qd1+ {[%clk 0:00:16]} 46. Ka2 {[%clk 0:00:02]}  Qxc1 {[%clk 0:00:14]} 0-1


[Site "https://www.chess.com"]

[Event "Titled Tuesday Blitz November 07 Early 2023"]
[White "Hajiyev, Kanan"]
[Black "Skvortsov, Andrei"]
[WhiteFideId "13404148"]
[BlackFideId "24108600"]
[WhiteElo "2511"]
[BlackElo "2664"]
[Result "0-1"]
[Round "8"]
[TimeControl "180+1"]
[Date "2023.11.07"]
[WhiteClock "0:00:08"]
[BlackClock "0:01:22"]
[Board "80"]

1. d4 {[%clk 0:03:00]}  e6 {[%clk 0:02:58]} 2. Nf3 {[%clk 0:03:01]}  f5 {[%clk 0:02:58]} 3. b3 {[%clk 0:02:59]}  Nf6 {[%clk 0:02:59]} 4. Bb2 {[%clk 0:03:00]}  Bb4+ {[%clk 0:02:57]} 5. Nbd2 {[%clk 0:02:59]}  O-O {[%clk 0:02:56]} 6. e3 {[%clk 0:02:59]}  Ne4 {[%clk 0:02:55]} 7. a3 {[%clk 0:02:57]}  Be7 {[%clk 0:02:55]} 8. Bd3 {[%clk 0:02:54]}  d5 {[%clk 0:02:55]} 9. c4 {[%clk 0:02:53]}  c6 {[%clk 0:02:55]} 10. Qc2 {[%clk 0:02:53]}  Nd7 {[%clk 0:02:55]} 11. O-O {[%clk 0:02:49]}  Bf6 {[%clk 0:02:55]} 12. Ne5 {[%clk 0:02:48]}  Qc7 {[%clk 0:02:41]} 13. f4 {[%clk 0:02:46]}  Nxe5 {[%clk 0:02:39]} 14. dxe5 {[%clk 0:02:44]}  Be7 {[%clk 0:02:38]} 15. cxd5 {[%clk 0:02:29]}  exd5 {[%clk 0:02:36]} 16. b4 {[%clk 0:02:24]}  a6 {[%clk 0:02:30]} 17. Nf3 {[%clk 0:02:24]}  Qb6 {[%clk 0:02:30]} 18. Nd4 {[%clk 0:02:23]}  a5 {[%clk 0:02:27]} 19. Rfb1 {[%clk 0:01:48]}  axb4 {[%clk 0:02:26]} 20. axb4 {[%clk 0:01:42]}  Rxa1 {[%clk 0:02:24]} 21. Bxa1 {[%clk 0:01:42]}  Bd7 {[%clk 0:02:25]} 22. Bxe4 {[%clk 0:01:29]}  fxe4 {[%clk 0:02:24]} 23. e6 {[%clk 0:01:23]}  Be8 {[%clk 0:02:23]} 24. f5 {[%clk 0:01:23]}  Bg5 {[%clk 0:02:21]} 25. Qc3 {[%clk 0:01:22]}  Bf6 {[%clk 0:02:21]} 26. Qc5 {[%clk 0:01:19]}  Qc7 {[%clk 0:02:18]} 27. Nb5 {[%clk 0:01:05]}  Qe7 {[%clk 0:02:09]} 28. Qxe7 {[%clk 0:00:54]}  Bxe7 {[%clk 0:02:08]} 29. Nd4 {[%clk 0:00:51]}  h5 {[%clk 0:02:07]} 30. g3 {[%clk 0:00:40]}  g6 {[%clk 0:02:00]} 31. fxg6 {[%clk 0:00:33]}  Bg5 {[%clk 0:01:59]} 32. Re1 {[%clk 0:00:28]}  Bxg6 {[%clk 0:01:57]} 33. Bc3 {[%clk 0:00:21]}  Ra8 {[%clk 0:01:57]} 34. Kf2 {[%clk 0:00:17]}  Kf8 {[%clk 0:01:55]} 35. Ra1 {[%clk 0:00:17]}  Rxa1 {[%clk 0:01:53]} 36. Bxa1 {[%clk 0:00:18]}  Ke7 {[%clk 0:01:53]} 37. Bc3 {[%clk 0:00:17]}  h4 {[%clk 0:01:46]} 38. Bb2 {[%clk 0:00:13]}  hxg3+ {[%clk 0:01:44]} 39. hxg3 {[%clk 0:00:14]}  Bh7 {[%clk 0:01:40]} 40. Ba3 {[%clk 0:00:14]}  Kf6 {[%clk 0:01:27]} 41. b5 {[%clk 0:00:14]}  cxb5 {[%clk 0:01:27]} 42. e7 {[%clk 0:00:13]}  Kf7 {[%clk 0:01:27]} 43. Nxb5 {[%clk 0:00:12]}  Bxe7 {[%clk 0:01:27]} 44. Nd6+ {[%clk 0:00:12]}  Ke6 {[%clk 0:01:27]} 45. Nxe4 {[%clk 0:00:07]}  Bxe4 {[%clk 0:01:22]} 46. Bb2 {[%clk 0:00:08]} 0-1


[Site "https://www.chess.com"]

[Event "Titled Tuesday Blitz November 07 Early 2023"]
[White "Adla, Diego"]
[Black "Berezin, Viktor"]
[WhiteFideId "100072"]
[BlackFideId "14107872"]
[WhiteElo "2659"]
[BlackElo "2467"]
[Result "0-1"]
[Round "8"]
[TimeControl "180+1"]
[Date "2023.11.07"]
[WhiteClock "0:00:00"]
[BlackClock "0:00:06"]
[Board "83"]

1. e4 {[%clk 0:03:00]}  g6 {[%clk 0:02:50]} 2. d4 {[%clk 0:02:56]}  Bg7 {[%clk 0:02:50]} 3. Nc3 {[%clk 0:02:56]}  d6 {[%clk 0:02:49]} 4. f4 {[%clk 0:02:53]}  Nf6 {[%clk 0:02:48]} 5. Nf3 {[%clk 0:02:53]}  O-O {[%clk 0:02:48]} 6. e5 {[%clk 0:02:52]}  Ne8 {[%clk 0:02:47]} 7. Be3 {[%clk 0:02:40]}  Na6 {[%clk 0:02:42]} 8. Qd2 {[%clk 0:02:36]}  c5 {[%clk 0:02:38]} 9. dxc5 {[%clk 0:02:34]}  Qa5 {[%clk 0:02:36]} 10. Nd5 {[%clk 0:02:26]}  Qd8 {[%clk 0:02:32]} 11. O-O-O {[%clk 0:02:25]}  Be6 {[%clk 0:02:21]} 12. cxd6 {[%clk 0:02:17]}  exd6 {[%clk 0:02:20]} 13. Bxa6 {[%clk 0:02:17]}  bxa6 {[%clk 0:02:20]} 14. h4 {[%clk 0:02:13]}  Rc8 {[%clk 0:02:07]} 15. h5 {[%clk 0:02:10]}  Bf5 {[%clk 0:02:04]} 16. Nc3 {[%clk 0:02:04]}  Qa5 {[%clk 0:02:00]} 17. Nd4 {[%clk 0:01:56]}  Bg4 {[%clk 0:01:53]} 18. Nb3 {[%clk 0:01:53]}  Qc7 {[%clk 0:01:48]} 19. exd6 {[%clk 0:01:46]}  Qd7 {[%clk 0:01:33]} 20. hxg6 {[%clk 0:01:39]}  hxg6 {[%clk 0:01:31]} 21. Rde1 {[%clk 0:01:30]}  Nxd6 {[%clk 0:01:13]} 22. Bd4 {[%clk 0:00:58]}  Nc4 {[%clk 0:00:59]} 23. Qf2 {[%clk 0:00:54]}  Bxd4 {[%clk 0:00:37]} 24. Qxd4 {[%clk 0:00:54]}  Qxd4 {[%clk 0:00:34]} 25. Nxd4 {[%clk 0:00:55]}  Rfd8 {[%clk 0:00:34]} 26. Nb3 {[%clk 0:00:52]}  Bf5 {[%clk 0:00:28]} 27. Rhf1 {[%clk 0:00:42]}  Na3 {[%clk 0:00:27]} 28. Rf2 {[%clk 0:00:36]}  a5 {[%clk 0:00:25]} 29. Nxa5 {[%clk 0:00:29]}  Nc4 {[%clk 0:00:18]} 30. Nxc4 {[%clk 0:00:28]}  Rxc4 {[%clk 0:00:19]} 31. g3 {[%clk 0:00:27]}  a5 {[%clk 0:00:19]} 32. Rd2 {[%clk 0:00:27]}  Rdc8 {[%clk 0:00:18]} 33. a3 {[%clk 0:00:27]}  Kg7 {[%clk 0:00:17]} 34. Re3 {[%clk 0:00:27]}  Rh8 {[%clk 0:00:17]} 35. Rde2 {[%clk 0:00:26]}  Rh1+ {[%clk 0:00:16]} 36. Re1 {[%clk 0:00:26]}  Rh2 {[%clk 0:00:17]} 37. R3e2 {[%clk 0:00:26]}  Rh3 {[%clk 0:00:17]} 38. Re3 {[%clk 0:00:25]}  Rh2 {[%clk 0:00:17]} 39. R1e2 {[%clk 0:00:24]}  Rh1+ {[%clk 0:00:17]} 40. Nd1 {[%clk 0:00:18]}  Bg4 {[%clk 0:00:17]} 41. Rd2 {[%clk 0:00:18]}  f6 {[%clk 0:00:10]} 42. b3 {[%clk 0:00:17]}  Rc5 {[%clk 0:00:10]} 43. Red3 {[%clk 0:00:16]}  g5 {[%clk 0:00:10]} 44. fxg5 {[%clk 0:00:15]}  fxg5 {[%clk 0:00:10]} 45. Kb2 {[%clk 0:00:16]}  Bf5 {[%clk 0:00:07]} 46. Rd5 {[%clk 0:00:14]}  Rxd5 {[%clk 0:00:03]} 47. Rxd5 {[%clk 0:00:14]}  Kf6 {[%clk 0:00:04]} 48. Ne3 {[%clk 0:00:13]}  Be4 {[%clk 0:00:04]} 49. Rxa5 {[%clk 0:00:11]}  Re1 {[%clk 0:00:04]} 50. Nd5+ {[%clk 0:00:10]}  Kg6 {[%clk 0:00:04]} 51. Nc3 {[%clk 0:00:09]}  Bf5 {[%clk 0:00:04]} 52. Rd5 {[%clk 0:00:08]}  Re3 {[%clk 0:00:04]} 53. Rd6+ {[%clk 0:00:07]}  Kh5 {[%clk 0:00:04]} 54. a4 {[%clk 0:00:07]}  Rxg3 {[%clk 0:00:04]} 55. a5 {[%clk 0:00:08]}  Rg2 {[%clk 0:00:05]} 56. b4 {[%clk 0:00:06]}  Rxc2+ {[%clk 0:00:05]} 57. Kb3 {[%clk 0:00:06]}  Rc1 {[%clk 0:00:05]} 58. a6 {[%clk 0:00:06]}  Bg6 {[%clk 0:00:05]} 59. a7 {[%clk 0:00:05]}  Ra1 {[%clk 0:00:06]} 60. Na2 {[%clk 0:00:04]}  Bf7+ {[%clk 0:00:06]} 61. Kc3 {[%clk 0:00:00]}  Rxa2 {[%clk 0:00:06]} 0-1


[Site "https://www.chess.com"]

[Event "Titled Tuesday Blitz November 07 Early 2023"]
[White "ExchangeAB"]
[Black "Volkov, Maksim"]
[BlackFideId "54123070"]
[WhiteElo "2451"]
[BlackElo "2648"]
[Result "0-1"]
[Round "8"]
[TimeControl "180+1"]
[Date "2023.11.07"]
[WhiteClock "0:00:19"]
[BlackClock "0:00:17"]
[Board "84"]

1. Nf3 {[%clk 0:03:00]}  d5 {[%clk 0:02:59]} 2. e3 {[%clk 0:03:01]}  Nf6 {[%clk 0:02:59]} 3. b3 {[%clk 0:03:01]}  g6 {[%clk 0:02:56]} 4. Bb2 {[%clk 0:03:00]}  Bg7 {[%clk 0:02:57]} 5. Be2 {[%clk 0:02:56]}  O-O {[%clk 0:02:56]} 6. O-O {[%clk 0:02:57]}  c5 {[%clk 0:02:54]} 7. d3 {[%clk 0:02:56]}  Nc6 {[%clk 0:02:53]} 8. Ne5 {[%clk 0:02:56]}  Qd6 {[%clk 0:02:44]} 9. Nxc6 {[%clk 0:02:56]}  Qxc6 {[%clk 0:02:44]} 10. Be5 {[%clk 0:02:55]}  Nd7 {[%clk 0:02:35]} 11. Bxg7 {[%clk 0:02:55]}  Kxg7 {[%clk 0:02:36]} 12. Nd2 {[%clk 0:02:53]}  b6 {[%clk 0:02:30]} 13. Bf3 {[%clk 0:02:42]}  Bb7 {[%clk 0:02:29]} 14. c4 {[%clk 0:02:40]}  e6 {[%clk 0:02:29]} 15. Qc2 {[%clk 0:02:39]}  Ne5 {[%clk 0:02:27]} 16. Rfd1 {[%clk 0:02:36]}  f6 {[%clk 0:02:23]} 17. Rac1 {[%clk 0:02:34]}  Nxf3+ {[%clk 0:02:18]} 18. Nxf3 {[%clk 0:02:35]}  d4 {[%clk 0:02:19]} 19. exd4 {[%clk 0:02:31]}  cxd4 {[%clk 0:02:19]} 20. c5 {[%clk 0:02:31]}  b5 {[%clk 0:02:19]} 21. b4 {[%clk 0:02:31]}  g5 {[%clk 0:02:16]} 22. Qe2 {[%clk 0:02:27]}  e5 {[%clk 0:02:13]} 23. h3 {[%clk 0:02:21]}  h5 {[%clk 0:02:11]} 24. Kh2 {[%clk 0:02:17]}  Rh8 {[%clk 0:01:51]} 25. Rg1 {[%clk 0:02:16]}  Kf7 {[%clk 0:01:30]} 26. Rce1 {[%clk 0:02:06]}  Rae8 {[%clk 0:01:29]} 27. Nd2 {[%clk 0:02:06]}  g4 {[%clk 0:01:18]} 28. Ne4 {[%clk 0:02:00]}  Re6 {[%clk 0:01:10]} 29. Nd6+ {[%clk 0:01:59]}  Rxd6 {[%clk 0:01:09]} 30. cxd6 {[%clk 0:02:00]}  Qxd6 {[%clk 0:01:10]} 31. h4 {[%clk 0:01:52]}  Rc8 {[%clk 0:00:59]} 32. Rc1 {[%clk 0:01:50]}  Rc3 {[%clk 0:00:57]} 33. Rxc3 {[%clk 0:01:44]}  dxc3 {[%clk 0:00:58]} 34. Qe3 {[%clk 0:01:42]}  e4+ {[%clk 0:00:54]} 35. g3 {[%clk 0:01:41]}  exd3 {[%clk 0:00:55]} 36. Qxa7 {[%clk 0:01:36]}  Qd5 {[%clk 0:00:55]} 37. Qb8 {[%clk 0:01:29]}  c2 {[%clk 0:00:50]} 38. Qc7+ {[%clk 0:01:28]}  Kg6 {[%clk 0:00:50]} 39. Qc3 {[%clk 0:01:00]}  Qe4 {[%clk 0:00:30]} 40. Qd2 {[%clk 0:00:39]}  Bd5 {[%clk 0:00:30]} 41. a3 {[%clk 0:00:37]}  Bb7 {[%clk 0:00:28]} 42. Qc3 {[%clk 0:00:24]}  Qe2 {[%clk 0:00:20]} 43. Qd4 {[%clk 0:00:24]}  Qf3 {[%clk 0:00:20]} 44. Qc5 {[%clk 0:00:21]}  c1=Q {[%clk 0:00:17]} 45. Qxc1 {[%clk 0:00:18]}  Qxf2+ {[%clk 0:00:17]} 46. Rg2 {[%clk 0:00:19]}  Qxg2# {[%clk 0:00:17]} 0-1


[Site "https://www.chess.com"]

[Event "Titled Tuesday Blitz November 07 Early 2023"]
[White "LiadCuba"]
[Black "Yelisieiev, Yevhenii"]
[BlackFideId "14139642"]
[WhiteElo "2430"]
[BlackElo "2646"]
[Result "0-1"]
[Round "8"]
[TimeControl "180+1"]
[Date "2023.11.07"]
[WhiteClock "0:00:13"]
[BlackClock "0:01:35"]
[Board "85"]

1. d4 {[%clk 0:03:00]}  d6 {[%clk 0:03:00]} 2. c4 {[%clk 0:02:59]}  e5 {[%clk 0:02:58]} 3. Nc3 {[%clk 0:02:58]}  exd4 {[%clk 0:02:58]} 4. Qxd4 {[%clk 0:02:59]}  Nc6 {[%clk 0:02:59]} 5. Qd2 {[%clk 0:02:58]}  g6 {[%clk 0:02:59]} 6. b3 {[%clk 0:02:58]}  Bg7 {[%clk 0:03:00]} 7. Bb2 {[%clk 0:02:58]}  Nge7 {[%clk 0:03:00]} 8. Nf3 {[%clk 0:02:51]}  O-O {[%clk 0:03:00]} 9. e3 {[%clk 0:02:51]}  h6 {[%clk 0:02:50]} 10. Be2 {[%clk 0:02:51]}  Be6 {[%clk 0:02:51]} 11. O-O {[%clk 0:02:50]}  d5 {[%clk 0:02:41]} 12. cxd5 {[%clk 0:02:47]}  Nxd5 {[%clk 0:02:42]} 13. Nxd5 {[%clk 0:02:46]}  Qxd5 {[%clk 0:02:42]} 14. Bxg7 {[%clk 0:02:39]}  Kxg7 {[%clk 0:02:35]} 15. Qb2+ {[%clk 0:02:35]}  Kh7 {[%clk 0:02:34]} 16. Bc4 {[%clk 0:02:35]}  Qf5 {[%clk 0:02:30]} 17. Bxe6 {[%clk 0:02:28]}  Qxe6 {[%clk 0:02:26]} 18. Rfd1 {[%clk 0:02:29]}  Rad8 {[%clk 0:02:24]} 19. Nd4 {[%clk 0:02:29]}  Nxd4 {[%clk 0:02:23]} 20. Rxd4 {[%clk 0:02:30]}  c5 {[%clk 0:02:21]} 21. Rc4 {[%clk 0:02:21]}  Rd5 {[%clk 0:02:02]} 22. e4 {[%clk 0:01:59]}  Rg5 {[%clk 0:02:01]} 23. f3 {[%clk 0:01:47]}  Rd8 {[%clk 0:01:59]} 24. Rac1 {[%clk 0:01:43]}  b6 {[%clk 0:01:52]} 25. a4 {[%clk 0:01:38]}  Rd3 {[%clk 0:01:49]} 26. Kh1 {[%clk 0:01:27]}  Qd7 {[%clk 0:01:44]} 27. h3 {[%clk 0:00:48]}  Rd2 {[%clk 0:01:40]} 28. Qc2 {[%clk 0:00:13]}  Rgxg2 {[%clk 0:01:35]} 0-1


[Site "https://www.chess.com"]

[Event "Titled Tuesday Blitz November 07 Early 2023"]
[White "Rosen, Eric"]
[Black "Ronka, Erik"]
[WhiteFideId "2032562"]
[BlackFideId "505080"]
[WhiteElo "2730"]
[BlackElo "2524"]
[Result "1-0"]
[Round "8"]
[TimeControl "180+1"]
[Date "2023.11.07"]
[WhiteClock "0:00:04"]
[BlackClock "0:00:02"]
[Board "88"]

1. e4 {[%clk 0:03:00]}  c5 {[%clk 0:02:58]} 2. Nc3 {[%clk 0:03:01]}  e6 {[%clk 0:02:58]} 3. f3 {[%clk 0:03:01]}  a6 {[%clk 0:02:51]} 4. f4 {[%clk 0:03:00]}  Nc6 {[%clk 0:02:46]} 5. Nf3 {[%clk 0:02:59]}  d6 {[%clk 0:02:37]} 6. g3 {[%clk 0:02:58]}  Nf6 {[%clk 0:02:38]} 7. Bg2 {[%clk 0:02:58]}  Be7 {[%clk 0:02:38]} 8. O-O {[%clk 0:02:58]}  O-O {[%clk 0:02:39]} 9. a4 {[%clk 0:02:56]}  Rb8 {[%clk 0:02:38]} 10. d3 {[%clk 0:02:53]}  b5 {[%clk 0:02:34]} 11. axb5 {[%clk 0:02:54]}  axb5 {[%clk 0:02:34]} 12. h3 {[%clk 0:02:55]}  b4 {[%clk 0:02:08]} 13. Ne2 {[%clk 0:02:55]}  Bb7 {[%clk 0:02:08]} 14. g4 {[%clk 0:02:54]}  d5 {[%clk 0:02:03]} 15. e5 {[%clk 0:02:44]}  Nd7 {[%clk 0:02:02]} 16. Ng3 {[%clk 0:02:38]}  Qc7 {[%clk 0:01:53]} 17. Qe2 {[%clk 0:02:34]}  Rbe8 {[%clk 0:01:51]} 18. c3 {[%clk 0:02:32]}  f6 {[%clk 0:01:45]} 19. d4 {[%clk 0:02:27]}  cxd4 {[%clk 0:01:20]} 20. cxd4 {[%clk 0:02:26]}  fxe5 {[%clk 0:01:19]} 21. fxe5 {[%clk 0:02:11]}  Rf7 {[%clk 0:00:30]} 22. Be3 {[%clk 0:02:07]}  Ref8 {[%clk 0:00:30]} 23. Qd3 {[%clk 0:01:49]}  Qb6 {[%clk 0:00:28]} 24. Kh2 {[%clk 0:01:42]}  Na5 {[%clk 0:00:28]} 25. Ng5 {[%clk 0:01:19]}  Bxg5 {[%clk 0:00:27]} 26. Rxf7 {[%clk 0:01:19]}  Rxf7 {[%clk 0:00:26]} 27. Bxg5 {[%clk 0:01:19]}  Nc6 {[%clk 0:00:24]} 28. Be3 {[%clk 0:01:13]}  Nf8 {[%clk 0:00:18]} 29. Nh5 {[%clk 0:00:50]}  Ng6 {[%clk 0:00:18]} 30. Rc1 {[%clk 0:00:44]}  Ba6 {[%clk 0:00:17]} 31. Qc2 {[%clk 0:00:45]}  Bb5 {[%clk 0:00:18]} 32. Qd2 {[%clk 0:00:35]}  Qb8 {[%clk 0:00:14]} 33. Rc5 {[%clk 0:00:31]}  Qb6 {[%clk 0:00:07]} 34. Qc1 {[%clk 0:00:31]}  Qb7 {[%clk 0:00:06]} 35. Kg3 {[%clk 0:00:20]}  Bc4 {[%clk 0:00:06]} 36. h4 {[%clk 0:00:18]}  b3 {[%clk 0:00:06]} 37. Qd2 {[%clk 0:00:17]}  Nb4 {[%clk 0:00:06]} 38. Ra5 {[%clk 0:00:12]}  Nd3 {[%clk 0:00:06]} 39. Qc3 {[%clk 0:00:11]}  h6 {[%clk 0:00:05]} 40. Kh3 {[%clk 0:00:05]}  Qb8 {[%clk 0:00:03]} 41. Ra1 {[%clk 0:00:04]}  Qd8 {[%clk 0:00:03]} 42. g5 {[%clk 0:00:02]}  hxg5 {[%clk 0:00:03]} 43. Bxg5 {[%clk 0:00:03]}  Qf8 {[%clk 0:00:03]} 44. Qd2 {[%clk 0:00:03]}  Rf2 {[%clk 0:00:03]} 45. Qe3 {[%clk 0:00:04]}  Rf7 {[%clk 0:00:02]} 46. Qg3 {[%clk 0:00:04]}  Nxb2 {[%clk 0:00:01]} 47. Nf6+ {[%clk 0:00:04]}  gxf6 {[%clk 0:00:01]} 48. Bxf6 {[%clk 0:00:05]}  Kh7 {[%clk 0:00:01]} 49. h5 {[%clk 0:00:05]}  Nh8 {[%clk 0:00:02]} 50. Qg4 {[%clk 0:00:04]}  Qh6 {[%clk 0:00:02]} 51. Be4+ {[%clk 0:00:04]}  Qg6 {[%clk 0:00:02]} 52. hxg6+ {[%clk 0:00:03]}  Nxg6 {[%clk 0:00:02]} 53. Qxg6# {[%clk 0:00:04]} 1-0


[Site "https://www.chess.com"]